fUSD/lending_fUSD_20251028
["ID","MTS","AMOUNT","RATE_DAILY","PERIOD"]
[392566603,1761679842559,-8109.84107859,0.0002933,2]
[392566604,1761679842569,-5350.2548876,0.0002933,2]
[392566605,1761679842578,-14267.3933637,0.0002933,2]
[392566606,1761679842588,-1417.8553865,0.0002933,2]
[392566607,1761679842598,-27854.65528361,0.0002933,2]
[392566608,1761679842717,-520.76798286,0.0002933,2]
[392566609,1761679842727,-240.0,0.00029339,2]
[392566610,1761679842737,-386.47056053,0.00029382,2]
[392566611,1761679842899,-99.99809548,0.00029382,2]
[392566612,1761679842911,-413.3914866,0.00029382,2]
[392566613,1761679842926,-4063.40235822,0.00029382,2]
[392566614,1761679842937,-200.0,0.000294,10]
[392566615,1761679842947,-2636.53512178,0.0002944,2]
[392566616,1761679842962,-20374.63937822,0.0002944,2]
[392566617,1761679842971,-216.9840127,0.0002944,2]
[392566618,1761679842982,-4963.26250083,0.00029464,2]
[392566619,1761679842992,-198.85,0.00029478,2]
[392566620,1761679843002,-159.85615,0.0002948,2]
[392566621,1761679843013,-500.0,0.000295,10]
[392566622,1761679843022,-862.40233327,0.00029537,2]
[392566623,1761679843032,-4963.26250083,0.00029545,2]
[392566624,1761679843042,-800.0,0.000296,10]
[392566625,1761679843052,-1000.0,0.00029626,2]
[392566626,1761679843062,-4963.26250083,0.00029627,2]
[392566627,1761679843072,-1425.0,0.00029628,2]
[392566628,1761679843082,-1000.0,0.00029634,2]
[392566629,1761679843093,-206.0,0.00029644,7]
[392566630,1761679843102,-1425.0,0.00029645,2]
[392566631,1761679843112,-198.85,0.0002967,2]
[392566632,1761679843122,-166.66,0.00029675,30]
[392566633,1761679843132,-2500.0,0.0002968,2]
[392566634,1761679843141,-1425.0,0.00029685,2]
[392566635,1761679843150,-531.41,0.00029688,3]
[392566636,1761679843160,-10720.3109,0.0002969,2]
[392566637,1761679843169,-1000.0,0.0002969,2]
[392566638,1761679843179,-1100.0,0.000297,10]
[392566639,1761679843188,-1425.0,0.00029701,2]
[392566640,1761679843198,-1425.0,0.00029704,2]
[392566641,1761679843207,-4963.26250083,0.00029709,2]
[392566642,1761679843217,-1425.0,0.00029709,2]
[392566643,1761679843227,-150.0,0.00029724,2]
[392566644,1761679843236,-346.68627643,0.00029735,2]
[392566645,1761679843246,-1425.0,0.00029736,2]
[392566646,1761679843255,-1000.0,0.00029742,2]
[392566647,1761679843264,-500.0,0.00029743,3]
[392566648,1761679843274,-1271.0,0.00029744,2]
[392566649,1761679843285,-818.0,0.00029744,2]
[392566650,1761679843294,-3412.077,0.00029744,2]
[392566651,1761679843304,-1425.0,0.0002975,2]
[392566652,1761679843313,-204.63678817,0.0002975,2]
[392566653,1761679843323,-1425.0,0.00029766,2]
[392566654,1761679843334,-1425.0,0.00029767,2]
[392566655,1761679843345,-1428.493,0.00029773,24]
[392566656,1761679843355,-159.28820459,0.0002978,15]
[392566657,1761679843365,-529.53206208,0.00029783,5]
[392566662,1761679845498,-643.46793792,0.00029783,5]
[392566663,1761679845508,-384.36887208,0.00029783,2]
[392566664,1761679845519,-1040.63112792,0.00029783,2]
[392566665,1761679845529,-499.76049392,0.00029787,2]
[392566666,1761679845607,-925.23950608,0.00029787,2]
[392566667,1761679845617,-500.0,0.00029789,3]
[392566668,1761679845626,-500.0,0.00029789,3]
[392566669,1761679845636,-506.70220008,0.00029789,3]
[392566670,1761679845646,-500.0,0.00029789,3]
[392566671,1761679845656,-500.0,0.00029789,3]
[392566672,1761679845666,-500.0,0.00029789,3]
[392566673,1761679845681,-500.0,0.00029789,3]
[392566674,1761679845695,-122.05829384,0.00029789,3]
[392566675,1761679845708,-377.94170616,0.00029789,3]
[392566676,1761679845719,-500.0,0.00029789,3]
[392566677,1761679845730,-259.85829384,0.00029789,3]
[392566678,1761679845770,-240.14170616,0.00029789,3]
[392566679,1761679845791,-500.0,0.00029789,3]
[392566680,1761679845801,-4852.14072998,0.0002979,2]
[392566681,1761679845817,-1140.684,0.0002979,2]
[392566682,1761679845887,-2047.88332748,0.0002979,2]
[392566683,1761679845897,-168.0,0.0002979,2]
[392566684,1761679845908,-3838.72592662,0.00029791,2]
[392569446,1761680041764,300.0,0.0002805,120]
[392569448,1761680046294,195.0,0.0002805,120]
[392569449,1761680047504,193.0,0.0002805,120]
[392569455,1761680236880,-150.0,0.0002394,2]
[392569456,1761680236903,-150.0,0.00024214,2]
[392569457,1761680236925,-1737.71,0.000255,5]
[392569464,1761680963113,-3778.0,0.000237,5]
[392569465,1761680963136,-204.77704411,0.00025699,2]
[392569466,1761680963158,-284.03611276,0.00025799,2]
[392569470,1761681031891,-2963.73388724,0.00025799,2]
[392569471,1761681031901,-250.0,0.0002662,2]
[392569472,1761681031910,-168.0,0.00026643,2]
[392569473,1761681031918,-150.0,0.00026901,2]
[392569474,1761681031927,-168.0,0.00027016,2]
[392569475,1761681031936,-168.0,0.00027407,2]
[392569476,1761681031945,-168.0,0.00027688,2]
[392569477,1761681031954,-168.0,0.00027813,2]
[392569478,1761681031963,-250.0,0.00028195,2]
[392569479,1761681031973,-221.43,0.00028256,2]
[392569480,1761681031982,-1200.0,0.00028375,2]
[392569481,1761681031992,-2638.0,0.00028376,2]
[392569482,1761681032001,-300.0,0.00028379,2]
[392569483,1761681032009,-300.0,0.00028379,2]
[392569484,1761681032018,-300.0,0.00028379,2]
[392569485,1761681032027,-300.0,0.00028379,2]
[392569486,1761681032036,-348.91203479,0.00028379,2]
[392569487,1761681032045,-300.0,0.00028453,2]
[392569488,1761681032054,-1583.79,0.00028454,2]
[392569489,1761681032063,-168.0,0.00028472,2]
[392569490,1761681032072,-5000.0,0.00028489,2]
[392569491,1761681032081,-500.0,0.00028572,2]
[392569492,1761681032090,-500.0,0.00028572,2]
[392569493,1761681032099,-193.00202042,0.00028572,2]
[392569494,1761681032109,-1000.0,0.00028576,2]
[392569495,1761681032118,-999.0,0.00028656,3]
[392569496,1761681032127,-150.0,0.00028712,2]
[392569497,1761681032137,-150.0,0.0002873,2]
[392569498,1761681032147,-1589.34,0.00028743,2]
[392569499,1761681032157,-201.98,0.00028753,2]
[392569500,1761681032168,-4900.25814769,0.00029,2]
[392569501,1761681032179,-5000.14785266,0.00029,2]
[392569502,1761681032189,-309.0,0.00029178,2]
[392569503,1761681032198,-221.43,0.00029316,2]
[392569504,1761681032209,-574.12855637,0.00029322,2]
[392569505,1761681032219,-1071.94596581,0.00029339,2]
[392569506,1761681032228,-1000.0,0.0002934,2]
[392569507,1761681032237,-33170.7581,0.0002934,2]
[392569508,1761681032248,-2638.0,0.00029557,7]
[392569509,1761681032258,-2037.7055791,0.00029598,2]
[392569510,1761681032267,-6757.761719,0.00029598,2]
[392569511,1761681032276,-1460.1767357,0.00029598,2]
[392569512,1761681032285,-5135.99327386,0.00029613,2]
[392569513,1761681032294,-166.66,0.00029625,2]
[392569514,1761681032304,-1425.0,0.00029631,2]
[392569515,1761681032314,-1425.0,0.00029638,2]
[392569516,1761681032323,-8103.31390357,0.0002964,2]
[392569517,1761681032333,-1000.0,0.0002964,2]
[392569518,1761681032342,-2500.0,0.0002964,2]
[392569519,1761681032351,-231.725658,0.0002964,31]
[392569520,1761681032360,-231.725658,0.0002964,31]
[392569521,1761681032369,-231.725658,0.0002964,31]
[392569522,1761681032379,-231.725658,0.0002964,31]
[392569523,1761681032388,-151.0,0.0002964,31]
[392569524,1761681032397,-151.0,0.0002964,31]
[392569525,1761681032406,-151.0,0.0002964,31]
[392569526,1761681032416,-151.0,0.0002964,31]
[392569527,1761681032425,-151.0,0.0002964,31]
[392569528,1761681032434,-151.0,0.0002964,31]
[392569529,1761681032443,-152.463802,0.0002964,31]
[392569530,1761681032452,-151.0,0.0002964,31]
[392569531,1761681032461,-151.0,0.0002964,31]
[392569532,1761681032473,-151.0,0.0002964,31]
[392569533,1761681032483,-151.0,0.0002964,31]
[392569534,1761681032492,-151.0,0.0002964,31]
[392569535,1761681032502,-151.0,0.0002964,31]
[392569536,1761681032511,-151.0,0.0002964,31]
[392569537,1761681032521,-151.0,0.0002964,31]
[392569538,1761681032530,-152.359481,0.0002964,31]
[392569539,1761681032540,-151.0,0.0002964,31]
[392569540,1761681032549,-151.0,0.0002964,31]
[392569541,1761681032558,-151.0,0.0002964,31]
[392569542,1761681032568,-266.093382,0.0002964,31]
[392569543,1761681032577,-151.0,0.0002964,14]
[392569544,1761681032586,-151.0,0.0002964,14]
[392569545,1761681032596,-151.0,0.0002964,14]
[392569546,1761681032605,-151.0,0.0002964,14]
[392569547,1761681032615,-151.0,0.0002964,31]
[392569548,1761681032624,-151.0,0.0002964,31]
[392569549,1761681032632,-206.48529,0.0002964,31]
[392569550,1761681032642,-153.911094,0.0002964,31]
[392569551,1761681032651,-151.0,0.0002964,31]
[392569552,1761681032661,-151.0,0.0002964,31]
[392569553,1761681032670,-534.83414862,0.0002964,2]
[392569554,1761681032679,-241.378243,0.0002964,31]
[392569555,1761681032688,-241.378243,0.0002964,31]
[392569556,1761681032697,-241.378243,0.0002964,31]
[392569557,1761681032707,-241.378243,0.0002964,31]
[392569558,1761681032719,-151.0,0.0002964,31]
[392569559,1761681032728,-796.229553,0.0002964,31]
[392569560,1761681032738,-151.0,0.0002964,31]
[392569561,1761681032747,-796.229553,0.0002964,31]
[392569562,1761681032756,-796.229553,0.0002964,31]
[392569563,1761681032766,-1425.0,0.00029641,2]
[392569564,1761681032775,-151.0,0.00029641,31]
[392569565,1761681032785,-152.957262,0.00029641,31]
[392569566,1761681032795,-153.643173,0.00029641,31]
[392569567,1761681032804,-151.0,0.00029641,31]
[392569568,1761681032814,-151.0,0.00029641,31]
[392569569,1761681032823,-151.0,0.00029641,31]
[392569570,1761681032834,-151.0,0.00029641,31]
[392569571,1761681032843,-151.0,0.00029641,31]
[392569572,1761681032853,-156.128904,0.00029641,30]
[392569573,1761681032862,-151.0,0.00029641,31]
[392569574,1761681032871,-892.251153,0.00029641,30]
[392569575,1761681032881,-892.251153,0.00029641,30]
[392569576,1761681032890,-151.0,0.00029641,31]
[392569577,1761681032900,-892.251153,0.00029641,30]
[392569578,1761681032909,-892.251153,0.00029641,30]
[392569579,1761681032919,-151.0,0.00029641,31]
[392569580,1761681032927,-151.0,0.00029641,31]
[392569581,1761681032937,-151.0,0.00029641,31]
[392569582,1761681032947,-151.0,0.00029641,31]
[392569583,1761681032955,-1291.967424,0.00029641,31]
[392569584,1761681032967,-151.0,0.00029641,31]
[392569585,1761681032977,-1291.967424,0.00029641,31]
[392569586,1761681032986,-160.042833,0.00029641,31]
[392569587,1761681032996,-1291.967424,0.00029641,31]
[392569588,1761681033006,-151.0,0.00029641,31]
[392569589,1761681033015,-243.346779,0.00029641,31]
[392569590,1761681033025,-160.201008,0.00029641,31]
[392569591,1761681033034,-160.042833,0.00029641,31]
[392569592,1761681033044,-1291.967424,0.00029641,31]
[392569593,1761681033053,-243.346779,0.00029641,31]
[392569594,1761681033062,-151.0,0.00029641,31]
[392569595,1761681033071,-160.042833,0.00029641,31]
[392569596,1761681033081,-243.346779,0.00029641,31]
[392569597,1761681033090,-151.0,0.00029641,31]
[392569598,1761681033100,-151.0,0.00029641,31]
[392569599,1761681033110,-160.042833,0.00029641,31]
[392569600,1761681033119,-151.0,0.00029641,31]
[392569601,1761681033129,-243.346779,0.00029641,31]
[392569602,1761681033138,-151.0,0.00029641,31]
[392569603,1761681033148,-151.0,0.00029641,31]
[392569604,1761681033157,-151.0,0.00029641,31]
[392569605,1761681033168,-290.871095,0.00029641,31]
[392569606,1761681033181,-151.0,0.00029641,31]
[392569607,1761681033190,-153.31205,0.00029641,31]
[392569608,1761681033200,-151.0,0.00029641,31]
[392569609,1761681033209,-151.0,0.00029641,31]
[392569610,1761681033221,-151.0,0.00029641,31]
[392569611,1761681033231,-5135.9932738,0.0002965,2]
[392569612,1761681033240,-241.378243,0.0002965,31]
[392569613,1761681033250,-241.378243,0.0002965,31]
[392569614,1761681033260,-241.378243,0.0002965,31]
[392569615,1761681033270,-241.378243,0.0002965,31]
[392569616,1761681033279,-151.0,0.0002965,31]
[392569617,1761681033289,-796.229553,0.0002965,31]
[392569618,1761681033298,-294.32589419,0.0002965,31]
[392569619,1761681033307,-796.229553,0.0002965,31]
[392569620,1761681033317,-796.229553,0.0002965,31]
[392569621,1761681033326,-238.0,0.00029667,2]
[392569622,1761681033335,-1425.0,0.00029669,2]
[392569623,1761681033345,-151.0,0.00029669,31]
[392569624,1761681033354,-151.0,0.00029669,31]
[392569625,1761681033363,-151.0,0.00029669,31]
[392569626,1761681033373,-160.301363,0.00029669,31]
[392569627,1761681033382,-151.0,0.00029669,31]
[392569628,1761681033392,-477.868537,0.00029669,31]
[392569629,1761681033401,-151.0,0.00029669,31]
[392569630,1761681033411,-477.868537,0.00029669,31]
[392569631,1761681033420,-151.0,0.00029669,31]
[392569632,1761681033430,-477.868537,0.00029669,31]
[392569633,1761681033440,-151.0,0.00029669,31]
[392569634,1761681033449,-477.868537,0.00029669,31]
[392569635,1761681033459,-151.0,0.00029669,31]
[392569636,1761681033471,-151.0,0.00029669,31]
[392569637,1761681033482,-151.0,0.00029669,31]
[392569638,1761681033492,-5108.418559,0.00029669,31]
[392569639,1761681033501,-5108.418559,0.00029669,31]
[392569640,1761681033511,-5108.418559,0.00029669,31]
[392569641,1761681033520,-5108.418559,0.00029669,31]
[392569642,1761681033530,-151.0,0.00029669,31]
[392569643,1761681033539,-151.0,0.00029669,31]
[392569644,1761681033550,-167.447788,0.00029669,31]
[392569645,1761681033560,-164.605312,0.00029669,31]
[392569646,1761681033569,-151.0,0.00029669,31]
[392569647,1761681033578,-151.0,0.00029669,31]
[392569648,1761681033588,-151.0,0.00029669,31]
[392569649,1761681033597,-151.0,0.00029669,31]
[392569650,1761681033607,-151.0,0.00029669,31]
[392569651,1761681033617,-151.0,0.00029669,31]
[392569652,1761681033626,-283.541349,0.00029669,31]
[392569653,1761681033636,-151.0,0.00029669,31]
[392569654,1761681033646,-151.0,0.00029669,31]
[392569655,1761681033656,-151.0,0.00029669,31]
[392569656,1761681033665,-153.922994,0.00029669,31]
[392569657,1761681033675,-151.0,0.00029669,31]
[392569658,1761681033684,-151.0,0.00029669,31]
[392569659,1761681033694,-301.374181,0.00029669,31]
[392569660,1761681033850,-301.374181,0.00029669,31]
[392569661,1761681033860,-151.0,0.00029669,31]
[392569662,1761681033870,-301.374181,0.00029669,31]
[392569663,1761681033880,-301.374181,0.00029669,31]
[392569664,1761681033890,-151.0,0.00029669,31]
[392569665,1761681033899,-151.0,0.00029669,31]
[392569666,1761681033909,-151.0,0.00029669,31]
[392569667,1761681033918,-151.0,0.00029669,31]
[392569668,1761681033928,-258.538878,0.00029669,31]
[392569669,1761681033938,-199.106426,0.00029669,31]
[392569670,1761681033948,-151.0,0.00029669,31]
[392569671,1761681033957,-892.251153,0.00029669,30]
[392569672,1761681033968,-892.251153,0.00029669,30]
[392569673,1761681033977,-151.0,0.00029669,31]
[392569674,1761681033987,-892.251153,0.00029669,30]
[392569675,1761681033996,-892.251153,0.00029669,30]
[392569676,1761681034006,-151.0,0.00029669,31]
[392569677,1761681034016,-151.0,0.00029669,31]
[392569678,1761681034025,-151.0,0.00029669,31]
[392569679,1761681034035,-151.0,0.00029669,31]
[392569680,1761681034044,-1291.967424,0.00029669,31]
[392569681,1761681034054,-1291.967424,0.00029669,31]
[392569682,1761681034063,-160.042833,0.00029669,31]
[392569683,1761681034073,-1291.967424,0.00029669,31]
[392569684,1761681034083,-243.346779,0.00029669,31]
[392569685,1761681034093,-160.042833,0.00029669,31]
[392569686,1761681034102,-1291.967424,0.00029669,31]
[392569687,1761681034112,-243.346779,0.00029669,31]
[392569688,1761681034122,-151.0,0.00029669,31]
[392569689,1761681034131,-160.042833,0.00029669,31]
[392569690,1761681034140,-243.346779,0.00029669,31]
[392569691,1761681034149,-151.0,0.00029669,31]
[392569692,1761681034159,-151.0,0.00029669,31]
[392569693,1761681034170,-151.0,0.00029669,31]
[392569694,1761681034182,-160.042833,0.00029669,31]
[392569695,1761681034191,-151.0,0.00029669,31]
[392569696,1761681034200,-243.346779,0.00029669,31]
[392569697,1761681034210,-151.0,0.00029669,31]
[392569698,1761681034220,-151.0,0.00029669,31]
[392569699,1761681034229,-159.699745,0.00029669,31]
[392569700,1761681034239,-151.0,0.00029669,31]
[392569701,1761681034248,-151.0,0.00029669,31]
[392569702,1761681034258,-231.725658,0.00029669,31]
[392569703,1761681034268,-231.725658,0.00029669,31]
[392569704,1761681034277,-231.725658,0.00029669,31]
[392569705,1761681034287,-231.725658,0.00029669,31]
[392569706,1761681034297,-231.725658,0.00029669,31]
[392569707,1761681034307,-231.725658,0.00029669,31]
[392569708,1761681034317,-231.725658,0.00029669,31]
[392569709,1761681034326,-231.725658,0.00029669,31]
[392569710,1761681034335,-151.0,0.00029669,31]
[392569711,1761681034344,-151.0,0.00029669,31]
[392569712,1761681034354,-151.0,0.00029669,31]
[392569713,1761681034363,-151.0,0.00029669,31]
[392569714,1761681034373,-291.572362,0.00029669,31]
[392569715,1761681034383,-215.191464,0.00029669,31]
[392569716,1761681034392,-151.0,0.00029669,31]
[392569717,1761681034402,-151.0,0.00029669,31]
[392569718,1761681034412,-151.0,0.00029669,31]
[392569719,1761681034422,-151.0,0.00029669,31]
[392569720,1761681034431,-151.0,0.00029669,31]
[392569721,1761681034440,-151.0,0.00029669,31]
[392569722,1761681034450,-151.0,0.00029669,31]
[392569723,1761681034459,-151.0,0.00029669,31]
[392569724,1761681034470,-151.0,0.00029669,31]
[392569725,1761681034479,-151.0,0.00029669,31]
[392569726,1761681034489,-151.0,0.00029669,31]
[392569727,1761681034499,-151.0,0.00029669,31]
[392569728,1761681034510,-151.0,0.00029669,31]
[392569729,1761681034519,-151.0,0.00029669,31]
[392569730,1761681034529,-151.0,0.00029669,31]
[392569731,1761681034539,-151.0,0.00029669,31]
[392569732,1761681034548,-151.0,0.00029669,31]
[392569733,1761681034557,-151.0,0.00029669,31]
[392569734,1761681034567,-188.94408,0.00029669,31]
[392569735,1761681034576,-151.0,0.00029669,31]
[392569736,1761681034585,-151.0,0.00029669,14]
[392569737,1761681034595,-151.0,0.00029669,14]
[392569738,1761681034605,-151.0,0.00029669,14]
[392569739,1761681034615,-151.0,0.00029669,14]
[392569740,1761681034624,-151.0,0.00029669,14]
[392569741,1761681034633,-151.0,0.00029669,14]
[392569742,1761681034642,-151.0,0.00029669,14]
[392569743,1761681034651,-151.0,0.00029669,31]
[392569744,1761681034660,-195.598983,0.00029669,14]
[392569745,1761681034670,-151.0,0.00029669,31]
[392569746,1761681034679,-151.0,0.00029669,31]
[392569747,1761681034688,-151.0,0.00029669,31]
[392569748,1761681034697,-233.799804,0.00029669,31]
[392569749,1761681034706,-151.0,0.00029669,31]
[392569750,1761681034715,-241.378243,0.00029669,31]
[392569751,1761681034729,-241.378243,0.00029669,31]
[392569752,1761681034738,-241.378243,0.00029669,31]
[392569753,1761681034747,-241.378243,0.00029669,31]
[392569754,1761681034756,-151.0,0.00029669,31]
[392569755,1761681034765,-796.229553,0.00029669,31]
[392569756,1761681034775,-150.0,0.00029669,2]
[392569757,1761681034785,-796.229553,0.00029669,31]
[392569758,1761681034798,-150.0,0.00029669,2]
[392569759,1761681034807,-796.229553,0.00029669,31]
[392569760,1761681034817,-150.0,0.00029669,2]
[392569761,1761681034827,-158.34803,0.0002967,31]
[392569762,1761681034837,-151.0,0.0002967,31]
[392569763,1761681034846,-151.0,0.0002967,31]
[392569764,1761681034855,-151.0,0.0002967,31]
[392569765,1761681034864,-151.0,0.0002967,31]
[392569766,1761681034873,-151.0,0.0002967,31]
[392569767,1761681034883,-151.0,0.0002967,31]
[392569768,1761681034893,-151.0,0.0002967,31]
[392569769,1761681034902,-151.0,0.0002967,31]
[392569770,1761681034912,-301.374181,0.0002967,31]
[392569771,1761681034921,-301.374181,0.0002967,31]
[392569772,1761681034930,-151.0,0.0002967,31]
[392569773,1761681034939,-301.374181,0.0002967,31]
[392569774,1761681034948,-301.374181,0.0002967,31]
[392569775,1761681034957,-265.476293,0.0002967,31]
[392569776,1761681034969,-151.0,0.0002967,31]
[392569777,1761681034981,-1291.967424,0.0002967,31]
[392569778,1761681034991,-1291.967424,0.0002967,31]
[392569779,1761681035000,-160.042833,0.0002967,31]
[392569780,1761681035009,-1291.967424,0.0002967,31]
[392569781,1761681035019,-243.346779,0.0002967,31]
[392569782,1761681035028,-160.042833,0.0002967,31]
[392569783,1761681035038,-83.34367194,0.0002967,31]
[392569784,1761681035055,-1208.62375206,0.0002967,31]
[392569785,1761681035069,-243.346779,0.0002967,31]
[392569786,1761681035078,-151.0,0.0002967,31]
[392569787,1761681035087,-23.59113354,0.0002967,31]
[392569788,1761681035109,-136.45169946,0.0002967,31]
[392569789,1761681035118,-243.346779,0.0002967,31]
[392569790,1761681035128,-151.0,0.0002967,31]
[392569791,1761681035137,-151.0,0.0002967,31]
[392569792,1761681035146,-151.0,0.0002967,31]
[392569793,1761681035155,-160.042833,0.0002967,31]
[392569794,1761681035164,-151.0,0.0002967,31]
[392569795,1761681035173,-243.346779,0.0002967,31]
[392569796,1761681035182,-159.757162,0.0002967,31]
[392569797,1761681035194,-151.0,0.0002967,31]
[392569798,1761681035204,-241.378243,0.0002967,31]
[392569799,1761681035213,-241.378243,0.0002967,31]
[392569800,1761681035228,-241.378243,0.0002967,31]
[392569801,1761681035239,-241.378243,0.0002967,31]
[392569802,1761681035248,-151.0,0.0002967,31]
[392569803,1761681035258,-796.229553,0.0002967,31]
[392569804,1761681035269,-796.229553,0.0002967,31]
[392569805,1761681035278,-796.229553,0.0002967,31]
[392569806,1761681035288,-161.35059604,0.00029672,2]
[392569807,1761681035297,-231.725658,0.00029672,31]
[392569808,1761681035307,-231.725658,0.00029672,31]
[392569809,1761681035317,-231.725658,0.00029672,31]
[392569810,1761681035327,-231.725658,0.00029672,31]
[392569811,1761681035337,-151.0,0.00029672,31]
[392569812,1761681035346,-151.0,0.00029672,31]
[392569813,1761681035355,-151.0,0.00029672,31]
[392569814,1761681035364,-151.0,0.00029672,31]
[392569815,1761681035374,-151.0,0.00029672,31]
[392569816,1761681035384,-151.0,0.00029672,31]
[392569817,1761681035393,-151.0,0.00029672,31]
[392569818,1761681035403,-220.325394,0.00029672,31]
[392569819,1761681035412,-196.235508,0.00029672,31]
[392569820,1761681035422,-151.0,0.00029672,31]
[392569821,1761681035431,-151.0,0.00029672,14]
[392569822,1761681035441,-151.0,0.00029672,14]
[392569823,1761681035450,-151.0,0.00029672,14]
[392569824,1761681035460,-151.0,0.00029672,31]
[392569825,1761681035472,-151.0,0.00029672,31]
[392569826,1761681035482,-151.0,0.00029673,31]
[392569827,1761681035492,-151.0,0.00029673,31]
[392569828,1761681035502,-152.394731,0.00029673,31]
[392569829,1761681035511,-151.0,0.00029673,31]
[392569830,1761681035520,-151.0,0.00029673,31]
[392569831,1761681035530,-151.0,0.00029673,31]
[392569832,1761681035539,-291.16742,0.00029673,31]
[392569833,1761681035549,-151.0,0.00029673,30]
[392569834,1761681035558,-151.0,0.00029673,31]
[392569835,1761681035568,-151.0,0.00029673,31]
[392569836,1761681035577,-151.0,0.00029673,31]
[392569837,1761681035587,-151.0,0.00029673,31]
[392569838,1761681035596,-912.697164,0.00029673,31]
[392569839,1761681035605,-912.697164,0.00029673,31]
[392569840,1761681035615,-151.0,0.00029673,31]
[392569841,1761681035625,-912.697164,0.00029673,31]
[392569842,1761681035634,-912.697164,0.00029673,31]
[392569843,1761681035644,-152.759565,0.00029673,31]
[392569844,1761681035654,-151.0,0.00029673,31]
[392569845,1761681035664,-165.083844,0.00029673,31]
[392569846,1761681035674,-151.0,0.00029673,31]
[392569847,1761681035683,-165.083844,0.00029673,31]
[392569848,1761681035694,-151.0,0.00029673,31]
[392569849,1761681035704,-165.083844,0.00029673,31]
[392569850,1761681035714,-151.0,0.00029673,31]
[392569851,1761681035726,-165.083844,0.00029673,31]
[392569852,1761681035736,-154.064451,0.00029673,31]
[392569853,1761681035745,-151.0,0.00029673,31]
[392569854,1761681035755,-155.509095,0.00029673,31]
[392569855,1761681035771,-168.527687,0.00029673,31]
[392569856,1761681035786,-151.0,0.00029673,31]
[392569857,1761681035802,-151.0,0.00029673,31]
[392569858,1761681035811,-151.0,0.00029673,31]
[392569859,1761681035820,-180.256674,0.00029673,31]
[392569860,1761681035829,-151.0,0.00029673,31]
[392569861,1761681035838,-151.0,0.00029673,31]
[392569862,1761681035847,-272.354026,0.00029673,31]
[392569863,1761681035856,-151.0,0.00029673,31]
[392569864,1761681035866,-151.0,0.00029673,31]
[392569865,1761681035875,-151.0,0.00029673,31]
[392569866,1761681035884,-151.0,0.00029673,31]
[392569867,1761681035893,-151.0,0.00029673,31]
[392569868,1761681035902,-151.0,0.00029673,31]
[392569869,1761681035911,-151.0,0.00029673,31]
[392569870,1761681035921,-151.0,0.00029673,31]
[392569872,1761681035930,-152.677708,0.00029673,31]
[392569873,1761681035939,-286.572705,0.00029673,31]
[392569874,1761681035949,-151.0,0.00029673,30]
[392569875,1761681035958,-158.932132,0.00029673,31]
[392569876,1761681035970,-151.0,0.00029673,31]
[392569877,1761681035979,-151.0,0.00029673,31]
[392569879,1761681035988,-151.0,0.00029673,31]
[392569881,1761681035997,-151.0,0.00029673,15]
[392569883,1761681036007,-151.0,0.00029673,15]
[392569886,1761681036016,-151.0,0.00029673,31]
[392569889,1761681036025,-161.30887,0.00029673,31]
[392569892,1761681036034,-151.0,0.00029673,31]